{"text_format":"1","workbook":"xlsx","n_sheets":2,"sheets":["Cerere de Finanţare","Asociati"],"not_rendered":{"charts":0,"images":7,"macros":1,"external_links":0,"defined_names":1,"comments":0,"pivot_tables":0},"unopened":[],"bounds":{"document_bytes":16777216,"sheet_cells":100000,"rows_first":2000,"rows_last":500,"rows_between":2000,"halvings":0,"cell_chars":16384,"cell_head_chars":4096},"cells_cut":0,"cells_raw":0,"read":"whole","date_system":"1900"}

{"sheet":"Cerere de Finanţare","index":0,"n_rows":494,"n_cols":57,"rows_kept":494,"cut":false,"hidden":false,"merged":[[410,38,410,47],[397,38,397,47],[398,38,398,47],[399,38,399,47],[396,38,396,47],[417,9,417,29],[419,9,419,29],[418,9,418,29],[412,9,412,29],[406,9,406,29],[416,9,416,29],[403,9,403,29],[408,0,408,8],[415,9,415,29],[413,9,413,29],[409,9,409,29],[414,9,414,29],[417,0,417,8],[418,0,418,8],[412,0,412,8],[406,0,406,8],[403,0,403,8],[404,0,404,8],[405,0,405,8],[416,0,416,8],[407,0,407,8],[401,0,401,8],[402,0,402,8],[400,0,400,8],[397,0,397,8],[398,0,398,8],[399,0,399,8],[415,0,415,8],[410,0,410,8],[413,0,413,8],[409,0,409,8],[414,0,414,8],[411,0,411,8],[365,38,365,47],[366,38,366,47],[361,38,361,47],[362,38,362,47],[363,38,363,47],[358,38,358,47],[359,38,359,47],[396,9,396,29],[413,38,413,47],[419,38,419,47],[409,38,409,47],[414,38,414,47],[408,38,408,47],[417,38,417,47],[418,38,418,47],[412,38,412,47],[411,38,411,47],[406,38,406,47],[416,38,416,47],[403,38,403,47],[404,38,404,47],[405,38,405,47],[415,38,415,47],[401,38,401,47],[402,38,402,47],[407,38,407,47],[345,9,345,29],[346,9,346,29],[347,9,347,29],[348,9,348,29],[359,30,359,37],[345,38,345,47],[346,38,346,47],[347,38,347,47],[348,38,348,47],[345,30,345,37],[396,0,396,8],[404,9,404,29],[405,9,405,29],[407,9,407,29],[401,9,401,29],[402,9,402,29],[400,9,400,29],[397,9,397,29],[398,9,398,29],[399,9,399,29],[400,38,400,47],[390,38,390,47],[387,38,387,47],[388,38,388,47],[389,38,389,47],[384,38,384,47],[381,0,381,8],[382,0,382,8],[383,0,383,8],[378,0,378,8],[379,0,379,8],[380,0,380,8],[375,0,375,8],[376,0,376,8],[377,0,377,8],[372,0,372,8],[373,0,373,8],[352,38,352,47],[353,38,353,47],[354,38,354,47],[349,38,349,47],[350,38,350,47],[351,38,351,47],[352,9,352,29],[353,9,353,29],[354,9,354,29],[349,9,349,29],[350,9,350,29],[351,9,351,29],[350,0,350,8],[351,0,351,8],[375,30,375,37],[369,9,369,29],[370,9,370,29],[371,9,371,29],[372,9,372,29],[373,9,373,29],[374,9,374,29],[366,30,366,37],[361,30,361,37],[345,0,345,8],[346,0,346,8],[347,0,347,8],[348,0,348,8],[390,9,390,29],[387,9,387,29],[388,9,388,29],[389,9,389,29],[384,9,384,29],[385,9,385,29],[386,9,386,29],[381,9,381,29],[382,9,382,29],[383,9,383,29],[378,9,378,29],[379,9,379,29],[380,9,380,29],[375,9,375,29],[376,9,376,29],[377,9,377,29],[390,0,390,8],[387,0,387,8],[388,0,388,8],[389,0,389,8],[384,0,384,8],[385,0,385,8],[369,0,369,8],[370,0,370,8],[371,0,371,8],[386,0,386,8],[367,9,367,29],[368,9,368,29],[453,4,453,58],[4,44,4,58],[329,0,329,29],[330,0,330,29],[331,0,331,29],[486,0,492,34],[487,36,487,43],[489,36,489,43],[491,36,491,43],[489,45,489,57],[391,0,391,8],[391,9,391,29],[391,30,391,37],[391,38,391,47],[391,48,391,60],[393,0,393,60],[342,0,342,60],[389,30,389,37],[389,48,389,60],[390,30,390,37],[390,48,390,60],[387,30,387,37],[387,48,387,60],[388,30,388,37],[388,48,388,60],[385,30,385,37],[385,48,385,60],[386,30,386,37],[352,0,352,8],[353,0,353,8],[354,0,354,8],[349,0,349,8],[386,48,386,60],[383,30,383,37],[383,48,383,60],[384,30,384,37],[384,48,384,60],[381,30,381,37],[381,48,381,60],[382,30,382,37],[382,48,382,60],[379,30,379,37],[379,48,379,60],[380,30,380,37],[380,48,380,60],[377,30,377,37],[377,48,377,60],[378,30,378,37],[378,48,378,60],[385,38,385,47],[386,38,386,47],[381,38,381,47],[382,38,382,47],[383,38,383,47],[378,38,378,47],[379,38,379,47],[380,38,380,47],[377,38,377,47],[375,48,375,60],[376,30,376,37],[376,48,376,60],[373,30,373,37],[373,48,373,60],[374,30,374,37],[374,48,374,60],[371,30,371,37],[371,48,371,60],[372,30,372,37],[372,48,372,60],[369,30,369,37],[369,48,369,60],[370,30,370,37],[370,48,370,60],[367,30,367,37],[367,48,367,60],[368,30,368,37],[368,48,368,60],[375,38,375,47],[376,38,376,47],[372,38,372,47],[373,38,373,47],[374,38,374,47],[369,38,369,47],[370,38,370,47],[371,38,371,47],[367,38,367,47],[368,38,368,47],[366,48,366,60],[363,30,363,37],[363,48,363,60],[364,30,364,37],[364,48,364,60],[365,0,365,8],[366,0,366,8],[363,0,363,8],[364,9,364,29],[365,9,365,29],[366,9,366,29],[363,9,363,29],[364,38,364,47],[374,0,374,8],[367,0,367,8],[368,0,368,8],[364,0,364,8],[361,48,361,60],[362,30,362,37],[362,48,362,60],[361,0,361,8],[362,0,362,8],[359,0,359,8],[360,0,360,8],[361,9,361,29],[362,9,362,29],[359,9,359,29],[360,9,360,29],[357,30,357,37],[357,48,357,60],[358,30,358,37],[358,48,358,60],[355,30,355,37],[355,48,355,60],[356,30,356,37],[356,48,356,60],[358,0,358,8],[355,0,355,8],[356,0,356,8],[357,0,357,8],[358,9,358,29],[355,9,355,29],[356,9,356,29],[357,9,357,29],[360,38,360,47],[355,38,355,47],[356,38,356,47],[357,38,357,47],[345,48,345,60],[346,30,346,37],[346,48,346,60],[351,30,351,37],[351,48,351,60],[352,30,352,37],[352,48,352,60],[349,30,349,37],[350,30,350,37],[350,48,350,60],[425,23,425,31],[425,49,425,57],[395,0,395,8],[394,0,394,8],[394,9,394,29],[395,9,395,29],[412,30,412,37],[412,48,412,60],[413,30,413,37],[413,48,413,60],[410,30,410,37],[410,48,410,60],[411,30,411,37],[353,30,353,37],[411,48,411,60],[408,30,408,37],[408,48,408,60],[409,30,409,37],[359,48,359,60],[360,30,360,37],[360,48,360,60],[409,48,409,60],[406,30,406,37],[406,48,406,60],[407,30,407,37],[407,48,407,60],[411,9,411,29],[408,9,408,29],[423,0,423,8],[423,10,423,23],[421,30,421,37],[421,38,421,47],[421,48,421,60],[421,0,421,8],[421,9,421,29],[420,0,420,8],[420,9,420,29],[420,30,420,37],[420,38,420,47],[420,48,420,60],[418,30,418,37],[418,48,418,60],[419,30,419,37],[419,48,419,60],[416,30,416,37],[416,48,416,60],[417,30,417,37],[417,48,417,60],[414,30,414,37],[414,48,414,60],[415,30,415,37],[415,48,415,60],[419,0,419,8],[410,9,410,29],[404,30,404,37],[404,48,404,60],[405,30,405,37],[405,48,405,60],[402,30,402,37],[402,48,402,60],[403,30,403,37],[403,48,403,60],[400,30,400,37],[400,48,400,60],[401,30,401,37],[401,48,401,60],[347,30,347,37],[347,48,347,60],[348,30,348,37],[348,48,348,60],[349,48,349,60],[394,30,394,37],[394,38,394,47],[394,48,394,60],[395,30,395,37],[395,38,395,47],[395,48,395,60],[398,30,398,37],[398,48,398,60],[399,30,399,37],[397,48,397,60],[353,48,353,60],[354,30,354,37],[354,48,354,60],[365,30,365,37],[365,48,365,60],[326,0,326,29],[327,0,327,29],[326,30,326,34],[326,35,326,41],[326,55,326,60],[338,30,338,34],[338,35,338,41],[338,42,338,49],[338,50,338,54],[338,55,338,60],[337,30,337,34],[337,35,337,41],[337,42,337,49],[337,50,337,54],[334,30,334,34],[343,0,343,8],[343,9,343,29],[343,30,343,37],[343,38,343,47],[343,48,343,60],[339,0,339,29],[335,0,335,29],[336,0,336,29],[337,0,337,29],[338,0,338,29],[333,0,333,29],[326,42,326,49],[326,50,326,54],[339,55,339,60],[339,50,339,54],[339,42,339,49],[339,35,339,41],[339,30,339,34],[324,30,324,34],[324,35,324,41],[324,42,324,49],[324,50,324,54],[324,55,324,60],[325,55,325,60],[327,50,327,54],[336,30,336,34],[336,35,336,41],[327,30,327,34],[327,35,327,41],[327,42,327,49],[336,42,336,49],[336,50,336,54],[336,55,336,60],[335,50,335,54],[335,55,335,60],[337,55,337,60],[306,50,306,54],[306,55,306,60],[308,0,308,29],[308,30,308,34],[308,35,308,41],[308,42,308,49],[308,50,308,54],[308,55,308,60],[309,0,309,29],[309,30,309,34],[309,35,309,41],[309,42,309,49],[309,50,309,54],[309,55,309,60],[314,0,314,29],[314,30,314,34],[314,35,314,41],[314,42,314,49],[314,50,314,54],[314,55,314,60],[313,0,313,29],[313,30,313,34],[313,35,313,41],[313,42,313,49],[313,50,313,54],[313,55,313,60],[307,0,307,29],[307,30,307,34],[307,35,307,41],[307,42,307,49],[307,50,307,54],[307,55,307,60],[325,0,325,29],[320,0,320,29],[319,0,319,29],[321,0,321,29],[324,0,324,29],[316,0,316,29],[312,55,312,60],[311,0,311,29],[311,30,311,34],[311,35,311,41],[311,42,311,49],[311,50,311,54],[311,55,311,60],[310,0,310,29],[310,30,310,34],[310,35,310,41],[310,42,310,49],[310,50,310,54],[310,55,310,60],[325,30,325,34],[325,35,325,41],[325,42,325,49],[325,50,325,54],[323,30,323,34],[323,35,323,41],[321,30,321,34],[323,42,323,49],[323,50,323,54],[321,35,321,41],[321,42,321,49],[321,50,321,54],[323,55,323,60],[466,0,466,1],[466,2,466,25],[466,26,466,40],[467,41,467,50],[467,51,467,60],[466,41,466,50],[466,51,466,60],[467,0,467,1],[467,2,467,25],[467,26,467,40],[463,0,463,60],[464,51,464,60],[464,41,464,50],[464,0,464,40],[465,41,465,50],[465,51,465,60],[465,2,465,25],[465,0,465,1],[465,26,465,40],[469,41,469,50],[469,51,469,60],[470,0,470,1],[469,0,469,40],[470,2,470,40],[470,41,470,50],[470,51,470,60],[471,0,471,1],[471,2,471,40],[471,41,471,50],[471,51,471,60],[481,0,481,60],[482,0,482,60],[475,0,475,1],[475,41,475,50],[475,51,475,60],[484,0,484,60],[474,51,474,60],[476,0,476,1],[476,41,476,50],[473,0,473,60],[474,0,474,40],[478,0,478,40],[480,0,480,60],[474,41,474,50],[278,1,278,13],[279,1,279,13],[280,1,280,13],[281,1,281,13],[278,14,278,18],[281,14,281,18],[300,0,300,29],[299,0,299,29],[283,4,283,40],[281,19,281,41],[284,0,284,29],[285,0,285,29],[284,30,285,60],[287,0,287,29],[288,0,288,29],[290,0,290,29],[297,0,297,29],[297,30,297,34],[297,35,297,41],[297,42,297,49],[297,50,297,54],[297,55,297,60],[299,55,299,60],[281,42,281,48],[281,49,281,55],[282,14,282,18],[282,19,282,41],[282,42,282,48],[282,49,282,55],[282,1,282,13],[294,50,294,54],[294,55,294,60],[276,56,276,59],[277,56,279,59],[280,56,282,59],[278,19,278,41],[278,42,278,48],[278,49,278,55],[279,14,279,18],[279,19,279,41],[279,42,279,48],[279,49,279,55],[280,14,280,18],[280,19,280,41],[280,42,280,48],[280,49,280,55],[276,14,276,18],[276,19,276,41],[276,42,276,48],[276,49,276,55],[277,14,277,18],[277,19,277,41],[277,42,277,48],[277,49,277,55],[274,1,274,13],[274,14,274,18],[274,19,274,41],[274,42,274,48],[274,49,274,55],[276,1,276,13],[277,1,277,13],[274,56,275,59],[275,1,275,13],[275,14,275,18],[275,19,275,41],[275,42,275,48],[275,49,275,55],[267,0,267,60],[225,1,225,13],[225,20,225,32],[268,2,268,60],[272,1,273,13],[272,14,272,55],[272,56,273,59],[273,14,273,18],[273,19,273,41],[273,42,273,48],[273,49,273,55],[235,2,235,56],[236,2,236,56],[238,2,238,27],[238,31,238,56],[239,2,239,27],[239,31,239,56],[228,1,228,23],[226,1,226,13],[221,22,221,39],[221,42,221,58],[222,1,222,19],[222,22,222,39],[222,42,222,58],[223,1,223,9],[224,12,224,27],[223,30,223,33],[223,12,223,27],[224,30,224,33],[224,36,224,45],[223,54,223,58],[223,48,223,51],[224,48,224,51],[224,54,224,58],[161,1,161,41],[162,1,162,19],[165,50,165,55],[166,39,166,41],[166,46,166,54],[167,1,167,12],[167,15,167,26],[167,28,167,40],[196,24,196,49],[172,14,173,24],[210,24,210,49],[214,4,214,15],[214,18,214,20],[214,21,214,26],[214,28,214,35],[214,37,214,48],[215,10,215,15],[144,1,144,18],[146,0,146,60],[147,0,147,60],[148,1,148,18],[149,1,150,15],[149,19,149,39],[149,43,149,58],[150,19,150,39],[150,43,150,58],[162,22,162,39],[162,42,162,58],[155,48,155,55],[157,1,157,16],[157,17,157,30],[157,48,157,55],[159,1,159,23],[159,24,159,30],[159,48,159,55],[151,2,151,14],[151,19,151,39],[151,43,151,58],[111,3,111,10],[111,11,111,58],[112,3,112,10],[112,11,112,58],[129,1,133,59],[127,1,127,3],[126,12,126,18],[113,3,113,10],[113,11,113,58],[120,3,120,10],[120,11,120,58],[121,3,121,10],[121,11,121,58],[122,3,122,10],[122,11,122,58],[123,3,123,10],[123,11,123,58],[44,1,44,22],[31,1,31,7],[28,0,28,16],[29,0,29,60],[31,10,31,60],[32,10,32,60],[64,39,64,48],[70,1,74,13],[62,1,66,13],[60,50,60,58],[58,41,58,59],[88,15,88,25],[88,27,88,37],[88,39,88,48],[88,50,88,58],[101,1,101,22],[64,50,64,58],[80,15,80,25],[80,27,80,37],[60,15,60,25],[34,1,35,8],[34,13,35,60],[6,6,6,60],[7,6,7,60],[13,0,13,34],[14,0,14,34],[16,7,16,34],[16,0,16,5],[9,42,9,60],[18,0,18,5],[18,7,19,7],[18,9,19,9],[18,10,19,10],[18,12,19,12],[11,0,12,34],[19,0,19,5],[18,21,19,21],[13,36,14,60],[19,36,27,60],[21,9,21,11],[24,9,24,20],[16,36,16,60],[17,36,18,60],[24,0,24,7],[21,30,21,34],[22,30,22,34],[21,15,21,18],[23,30,23,34],[18,31,19,31],[18,32,19,32],[18,33,19,33],[18,34,19,34],[20,30,20,34],[20,20,20,23],[18,22,19,22],[18,23,19,23],[18,25,19,25],[18,27,19,27],[18,28,19,28],[20,27,20,28],[20,24,20,26],[64,15,64,25],[64,27,64,37],[58,27,58,40],[25,0,25,21],[26,0,26,7],[27,0,27,21],[39,1,39,16],[38,1,38,59],[40,1,43,59],[18,13,19,13],[18,15,19,15],[18,16,19,16],[18,17,19,17],[18,18,19,18],[18,20,19,20],[18,30,19,30],[56,2,56,19],[57,0,57,15],[20,6,20,8],[21,6,21,8],[22,6,22,8],[20,9,20,11],[20,12,20,14],[21,12,21,14],[21,27,21,28],[21,24,21,26],[22,12,22,14],[20,15,20,18],[21,20,21,23],[22,20,22,23],[23,20,23,23],[139,1,139,18],[295,0,295,29],[296,0,296,29],[296,30,296,34],[296,35,296,41],[296,42,296,49],[296,50,296,54],[296,55,296,60],[294,0,294,29],[286,30,289,60],[289,0,289,16],[289,17,289,18],[291,0,292,54],[291,55,291,60],[292,55,292,60],[293,0,293,60],[294,30,294,34],[294,35,294,41],[294,42,294,49],[181,0,181,60],[184,3,184,10],[184,24,184,49],[141,1,143,29],[141,31,141,39],[141,41,141,58],[143,31,143,39],[295,30,295,49],[295,50,295,60],[165,1,165,8],[302,42,302,49],[302,50,302,54],[302,55,302,60],[298,0,298,29],[298,30,298,34],[298,35,298,41],[298,42,298,49],[298,50,298,54],[298,55,298,60],[300,30,300,34],[300,35,300,41],[300,42,300,49],[300,50,300,54],[300,55,300,60],[299,30,299,34],[299,35,299,41],[299,42,299,49],[299,50,299,54],[302,0,302,29],[302,30,302,34],[302,35,302,41],[165,39,165,42],[165,44,165,47],[226,20,226,32],[224,1,224,9],[223,36,223,44],[220,1,220,37],[221,1,221,19],[210,3,210,16],[303,0,303,29],[303,30,303,34],[303,35,303,41],[303,42,303,49],[303,50,303,54],[303,55,303,60],[301,0,301,29],[301,30,301,34],[301,35,301,41],[301,42,301,49],[301,50,301,54],[301,55,301,60],[172,25,173,35],[172,36,173,46],[172,47,172,57],[173,47,173,57],[174,47,176,57],[175,4,175,13],[175,16,175,23],[175,26,175,34],[175,36,175,46],[189,4,189,15],[189,18,189,20],[189,21,189,26],[189,28,189,35],[189,37,189,48],[178,3,179,58],[242,0,265,59],[207,19,207,49],[195,3,195,10],[195,24,195,49],[196,3,196,16],[304,0,304,29],[304,30,304,34],[304,35,304,41],[304,42,304,49],[304,50,304,54],[304,55,304,60],[305,0,305,29],[305,30,305,34],[305,35,305,41],[305,42,305,49],[305,50,305,54],[305,55,305,60],[316,30,316,34],[316,35,316,41],[316,42,316,49],[316,50,316,54],[316,55,316,60],[315,0,315,29],[315,30,315,34],[315,35,315,41],[315,42,315,49],[315,50,315,54],[315,55,315,60],[312,0,312,29],[312,30,312,34],[312,35,312,41],[312,42,312,49],[312,50,312,54],[306,0,306,29],[306,30,306,34],[306,35,306,41],[306,42,306,49],[317,30,317,34],[321,55,321,60],[322,0,322,29],[322,30,322,34],[322,35,322,41],[322,42,322,49],[322,50,322,54],[322,55,322,60],[323,0,323,29],[317,0,317,29],[320,30,320,34],[320,35,320,41],[320,42,320,49],[320,50,320,54],[320,55,320,60],[319,30,319,34],[319,35,319,41],[319,42,319,49],[319,50,319,54],[319,55,319,60],[317,35,317,41],[317,42,317,49],[317,50,317,54],[317,55,317,60],[318,30,318,34],[318,35,318,41],[318,42,318,49],[318,50,318,54],[318,55,318,60],[318,0,318,29],[344,0,344,8],[344,9,344,29],[344,30,344,37],[399,48,399,60],[344,38,344,47],[344,48,344,60],[11,36,12,60],[25,22,25,29],[37,1,37,59],[45,1,54,59],[153,40,153,58],[155,1,155,27],[155,28,155,35],[155,38,155,45],[185,3,185,16],[185,24,185,49],[163,1,163,19],[163,22,163,39],[163,42,163,58],[164,1,164,9],[164,10,164,16],[164,29,164,32],[165,10,165,27],[165,29,165,32],[165,34,165,37],[80,39,80,48],[80,50,80,58],[72,50,72,58],[86,1,90,13],[58,0,58,12],[58,13,58,25],[60,1,60,13],[143,41,143,58],[167,42,167,58],[169,1,169,58],[170,1,170,58],[172,3,173,13],[60,27,60,37],[60,39,60,48],[72,15,72,25],[72,27,72,37],[72,39,72,48],[190,21,191,26],[190,28,191,35],[190,37,191,48],[190,51,191,58],[191,4,191,6],[191,7,191,9],[191,10,191,15],[96,27,96,37],[96,39,96,48],[96,50,96,58],[96,15,96,25],[78,1,82,13]],"merged_total":1138,"flags":["merged_cut"]}
[]
[]
[]
[]
[null,null,null,null,null,null,null,null,null,null,null,null,null,null,null,null,null,null,null,null,null,null,null,null,null,null,null,null,null,null,null,null,null,null,null,null,null,null,null,null,null,null,null,null,"August 2020, V03"]
[]
[null,null,null,null,null,null,"MINISTERUL AGRICULTURII ŞI DEZVOLTĂRII RURALE"]
[null,null,null,null,null,null,"AGENŢIA PENTRU FINANŢAREA INVESTIŢIILOR RURALE"]
[]
[null,null,null,null,null,null,null,null,null,null,null,null,null,null,null,null,null,null,null,null,null,null,null,null,null,null,null,null,null,null,null,null,null,null,null,null,null,null,null,null,null,null,"SECŢIUNE GENERALĂ"]
[]
["DATE DE ÎNREGISTRARE",null,null,null,null,null,null,null,null,null,null,null,null,null,null,null,null,null,null,null,null,null,null,null,null,null,null,null,null,null,null,null,null,null,null,null,"NUME ŞI PRENUME DIRECTOR OJFIR"]
[]
["Se completează de către Agenția pentru Finanțarea Investițiilor Rurale -Oficiul"]
["Judeţean- Programul FEADR pentru cereri de finanţare"]
[]
["OJFIR",null,null,null,null,null,null,null,null,null,null,null,null,null,null,null,null,null,null,null,null,null,null,null,null,null,null,null,null,null,null,null,null,null,null,null,"Semnătura Director OJFIR"]
[null,null,null,null,null,null,null,null,null,null,null,null,null,null,null,null,null,null,null,null,null,null,null,null,null,null,null,null,null,null,null,null,null,null,null,null,"Ştampila OJFIR"]
["Număr "]
["înregistrare"]
[]
[]
[]
[]
["Data Înregistrării"]
["Numele şi prenumele persoanei care înregistrează",null,null,null,null,null,null,null,null,null,null,null,null,null,null,null,null,null,null,null,null,null,"Semnătura:"]
[]
["Data primirii cererii de finanţare la contractare:"]
["Se completează de către solicitant"]
["A PREZENTARE GENERALĂ"]
[]
[null,"A1 Măsura",null,null,null,null,null,null,null,null,"Submăsura 19.2 Sprijin pentru implementarea actiunilor in cadrul strategiei de dezvoltare locala"]
[null,null,null,null,null,null,null,null,null,null,"M3/2B Instalare tanar fermier"]
[]
[null,"Domeniul \nde interventie",null,null,null,null,null,null,null,null,null,null,null,"2B) Facilitarea intrarii in sectorul agricol a unor fermieri calificati corespunzator si, in special, a reinnoirii generatiilor"]
[]
[]
[null,"A2 Nume prenume / Denumire solicitant:"]
[]
[null,"A3 Titlu proiect:"]
[]
[]
[]
[]
[null,"A4 Descrierea succintă a proiectului:"]
[]
[]
[]
[]
[]
[]
[]
[]
[]
[]
[]
[null,null,"A5 Amplasarea proiectului:"]
[]
["Regiunea de dezvoltare:",null,null,null,null,null,null,null,null,null,null,null,null,null,null,null,null,null,null,null,null,null,null,null,null,null,null,"Judeţ:"]
[]
[null,"Obiectivele investiţiei",null,null,null,null,null,null,null,null,null,null,null,null,null,"Judeţ",null,null,null,null,null,null,null,null,null,null,null,"Comună/Oraş",null,null,null,null,null,null,null,null,null,null,null,"Sat/Sector",null,null,null,null,null,null,null,null,null,null,"Sat/Sector"]
[]
[]
[]
[]
[]
[]
[]
[]
[]
[]
[]
[]
[]
[]
[]
[]
[]
[]
[]
[]
[]
[]
[]
[]
[]
[]
[]
[]
[]
[]
[]
[]
[]
[]
[]
[]
[]
[]
[]
[]
[null,"A6. Tipul zonei"]
[]
[null,null,null,"Zona GAL Cetatea Tamasidava"]
[]
[]
[null,"A7",null,null,null,null,"Declar pe proprie răspundere că nu am accesat PNA 2014-2016;"]
[null,null,null,null,null,null,"Declar pe propria răspundere că am accesat PNA 2014-2016 şi am beneficiat de finanţare pentru\n"]
[null,null,null,null,null,null,"următoarele achiziţii (pentru care nu voi solicita finanţare din PNDR 2014-2020 ):"]
[null,null,null,"Anul accesării:",null,null,null,null,null,null,null,null,"Produs achiziţionat:"]
[]
[]
[]
[]
[]
[null,null,null,null,null,null,"Declar pe proprie răspundere că nu voi accesa PNA 2017-2019 între momentul depunerii Cererii de"]
[null,null,null,null,null,null,"Finanţare la PNDR 2014-2020 şi momentul acordării celei de-a doua tranşe de plată din PNDR 2014-2020;"]
[null,null,null,null,null,null,"Declar pe propria răspundere că nu voi solicita finanţare din PNDR 2014-2020 pentru următoarele achiziţii\n"]
[null,null,null,null,null,null,"pe care intenţionez să le decontez prin accesarea PNA 2017-2019:"]
[null,null,null,"Anul accesării:",null,null,null,null,null,null,null,null,"Produs achiziţionat:"]
[]
[]
[]
[]
[]
[null,"A8 Total punctaj pentru criteriile de selectie indeplinite"]
[null,null,null,null,null,"Punctaj"]
[null,null,null,null,null,"Detalierea criteriilor de selecţie îndeplinite:"]
[]
[]
[]
[]
[]
[]
[]
[null,"Denumire consultant:"]
[null,null,null,null,null,null,null,null,null,null,null,null,null,null,null,null,null,null,null,null,null,null,null,null,null,null,null,null,null,null,null,"CUI"]
[]
[null,null,null,null,null,null,null,null,null,null,null,null,null,null,null,null,null,null,null,null,null,null,null,null,null,null,null,null,null,null,null,"Nr Înreg. ONRC"]
[]
[null,"Denumire proiectant:"]
[null,null,null,null,null,null,null,null,null,null,null,null,null,null,null,null,null,null,null,null,null,null,null,null,null,null,null,null,null,null,null,"CUI"]
[]
[null,null,null,null,null,null,null,null,null,null,null,null,null,null,null,null,null,null,null,null,null,null,null,null,null,null,null,null,null,null,null,"Nr Înreg. ONRC"]
[]
[]
["B INFORMAŢII PRIVIND SOLICITANTUL"]
["B1 Descrierea solicitantului"]
[null,"B1.1 Informaţii privind solicitantul"]
[null,"Data înființării",null,null,null,null,null,null,null,null,null,null,null,null,null,null,null,null,null,"Cod Unic de Înregistrare și/sau Codul de",null,null,null,null,null,null,null,null,null,null,null,null,null,null,null,null,null,null,null,null,null,null,null,"Statut juridic al solicitantului"]
[null,null,null,null,null,null,null,null,null,null,null,null,null,null,null,null,null,null,null,"Înregistrare Fiscală"]
[]
[]
[null,"Număr de înregistrare în registrul comerțului"]
[]
[null,"Codurile CAEN ale activităţilor finanţate prin proiect"]
[]
[null,"Codul unic de înregistrare APIA",null,null,null,null,null,null,null,null,null,null,null,null,null,null,null,null,null,null,null,null,null,null,null,null,null,null,null,null,null,null,null,null,null,null,"Anul atribuirii codului"]
[]
[null,"Cod Registru Naţional al Exploataţiilor ANSVSA",null,null,null,null,null,null,null,null,null,null,null,null,null,null,null,null,null,null,null,null,null,null,null,null,null,null,null,null,null,null,null,null,null,null,"Anul atribuirii codului"]
[]
[null,"B1.2 Sediul social / Domiciliul stabil al solicitantului / Reşedinţa din România"]
[null,"Judeţ",null,null,null,null,null,null,null,null,null,null,null,null,null,null,null,null,null,null,null,null,"Localitate",null,null,null,null,null,null,null,null,null,null,null,null,null,null,null,null,null,null,null,"Sat"]
[]
[null,"Cod Poştal",null,null,null,null,null,null,null,null,"Strada",null,null,null,null,null,null,null,null,null,null,null,null,null,null,null,null,null,null,"Nr.",null,null,null,null,"Bloc",null,null,null,null,"Scara",null,null,null,null,"Etaj",null,null,null,null,null,"Apartament"]
[]
[null,"Telefon fix",null,null,null,null,null,null,null,null,null,null,null,null,null,"Telefon mobil",null,null,null,null,null,null,null,null,null,null,null,null,"Fax",null,null,null,null,null,null,null,null,null,null,null,null,null,"E-mail"]
[]
[]
[null,"B1.3 Numele şi prenumele reprezentantului legal şi funcţia acestuia în cadrul organizaţiei, precum şi"]
[null,"specimenul de semnatură:"]
[]
[null,null,null,"Nume",null,null,null,null,null,null,null,null,null,null,"Prenume",null,null,null,null,null,null,null,null,null,null,"Funcţia",null,null,null,null,null,null,null,null,null,null,"Reprezentant legal",null,null,null,null,null,null,null,null,null,null,"Specimen de"]
[null,null,null,null,null,null,null,null,null,null,null,null,null,null,null,null,null,null,null,null,null,null,null,null,null,null,null,null,null,null,null,null,null,null,null,null,null,null,null,null,null,null,null,null,null,null,null,"semnătură"]
[]
[null,null,null,null,null,null,null,null,null,null,null,null,null,null,null,null,null,null,null,null,null,null,null,null,null,null,null,null,null,null,null,null,null,null,null,null,"LEGAL"]
[]
[null,null,null,"Studii şi coordonate"]
[]
[]
[]
["B2 Informaţii referitoare la reprezentantul legal de proiect"]
[null,"B2.1 Date de identitate ale reprezentantului legal de proiect (asociat unic/ asociat/ administrator) şi asociaţi:"]
[]
[null,null,null,"Data naşterii",null,null,null,null,null,null,null,null,null,null,null,null,null,null,null,null,null,null,null,null,"Cod numeric personal"]
[]
[]
[]
[]
[null,null,null,null,"Act de identitate",null,null,null,null,null,null,null,null,null,null,null,null,null,"Seria",null,null,"Nr.",null,null,null,null,null,null,"Eliberat la data de",null,null,null,null,null,null,null,null,"de:",null,null,null,null,null,null,null,null,null,null,null,null,null,"Valabil până la:"]
[null,null,null,null,"B.I.",null,null,"C.I.",null,null,"Paşaport"]
[]
[]
[null,"Date de identitate ale soţului/soţiei:"]
[]
[null,null,null,"Data naşterii",null,null,null,null,null,null,null,null,null,null,null,null,null,null,null,null,null,null,null,null,"Cod numeric personal"]
[]
[]
[]
[]
[null,null,null,null,"Act de identitate",null,null,null,null,null,null,null,null,null,null,null,null,null,"Seria",null,null,"Nr.",null,null,null,null,null,null,"Eliberat la data de",null,null,null,null,null,null,null,null,"de:",null,null,null,null,null,null,null,null,null,null,null,null,null,"Valabil până la:"]
[null,null,null,null,"B.I.",null,null,"C.I.",null,null,"Paşaport"]
[]
[]
[null,null,null,null,null,"Asociat unic",null,null,null,null,null,null,null,null,null,null,null,null,null,"Asociat majoritar",null,null,null,null,null,null,null,null,null,null,null,null,null,"Administrator"]
[]
[null,"Asociați"]
[null,null,null,"Nume şi prenume asociat:"]
[]
[null,null,null,"Data naşterii",null,null,null,null,null,null,null,null,null,null,null,null,null,null,null,null,null,null,null,null,"Cod numeric personal"]
[]
[]
[]
[]
[null,null,null,null,"Act de identitate",null,null,null,null,null,null,null,null,null,null,null,null,null,"Seria",null,null,"Nr.",null,null,null,null,null,null,"Eliberat la data de",null,null,null,null,null,null,null,null,"de:",null,null,null,null,null,null,null,null,null,null,null,null,null,"Valabil până la:"]
[null,null,null,null,"B.I.",null,null,"C.I.",null,null,"Paşaport"]
[]
[]
[]
[]
[null,"B2.2 Domiciliul stabil al reprezentantului legal de proiect"]
[null,"Judeţ",null,null,null,null,null,null,null,null,null,null,null,null,null,null,null,null,null,null,null,null,"Localitate",null,null,null,null,null,null,null,null,null,null,null,null,null,null,null,null,null,null,null,"Sat"]
[]
[null,"Cod Poştal",null,null,null,null,null,null,null,null,null,null,"Strada",null,null,null,null,null,null,null,null,null,null,null,null,null,null,null,null,null,"Nr.",null,null,null,null,null,"Bloc",null,null,null,null,null,null,null,null,null,null,null,"Scara",null,null,null,null,null,"Ap."]
[]
[null,"Telefon fix",null,null,null,null,null,null,null,null,null,null,null,null,null,null,null,null,null,null,"Telefon mobil",null,null,null,null,null,null,null,null,null,null,null,null,null,null,null,null,null,"Fax"]
[]
[null,"E-mail"]
[]
[]
["B3 Informaţii privind contul bancar pentru proiect F.E.A.D.R."]
[]
[null,null,"B3.1 Denumirea Băncii",null,null,null,null,null,null,null,null,null,null,null,null,null,null,null,null,null,null,null,null,null,null,null,null,null,null,null,null,"Denumirea Sucursalei/Filialei"]
[]
[]
[null,null,"B3.2 Adresa Băncii/Sucursalei"]
[]
[]
[null,null,"B3.3 Cod IBAN",null,null,null,null,null,null,null,null,null,null,null,null,null,null,null,null,null,null,null,null,null,null,null,null,null,null,null,null,"B3.4 Titularul contului bancar"]
[]
[]
[]
["REGULI DE COMPLETARE\n\nLa punctul D, Alte informaţii: Programarea proiectului, se va introduce numărul de luni de implementare a proiectului.\n\nLa punctul E. Lista documentelor anexate, se vor bifa documentele aferente tipului de proiect şi de solicitant, iar in ultima coloană a tabelului se vor menţiona paginile între care se găseste documentul respectiv în dosarul cererii de finanţare. Trebuie bifate toate documentele de pe coloana “Obligatoriu pentru toate proiectele”.\n\nSe vor completa celulele albe din tabelul privind stabilirea categoriei de fermă cu suprafeţele/ numărul de capete aferent culturii/speciei, iar calculul valorii productiei standard (SO) se va efectua automat.\n\nSe va completa Declaraţia pe propria răspundere a solicitantului cu datele solicitate (denumire/nume prenume solicitant, titlul proiectului), şi se vor bifa toate angajamentele menţionate în cuprinsul acesteia.\n\nCâmpul Studii şi coordonate se va completa cu: competentele şi aptitudinile profesionale îndeplinite.\n\nTrebuie bifate şi anexate toate documentele de pe coloana “DEPUNERE-Obligatoriu pentru toate proiectele” din secțiunea E - Lista documentelor anexate.\n"]
[]
[]
[]
[]
[]
[]
[]
[]
[]
[]
[]
[]
[]
[]
[]
[]
[]
[]
[]
[]
[]
[]
[]
[]
["C FINANȚĂRI NERAMBURSABILE solicitate şi/sau obţinute"]
[null,null,"C. Solicitatul a mai obtinut finanţări nerambursabile ? Dacă Da, detaliaţi cu datele solicitate în tabelul de mai jos"]
[]
[null,null,null,null,null,null,null,null,null,null,"DA",null,null,null,null,null,null,null,"NU"]
[]
[null,"DENUMIRE PROGRAM FINANȚARE",null,null,null,null,null,null,null,null,null,null,null,null,"DA",null,null,null,null,null,null,null,null,null,null,null,null,null,null,null,null,null,null,null,null,null,null,null,null,null,null,null,null,null,null,null,null,null,null,null,null,null,null,null,null,null,"NU"]
[null,null,null,null,null,null,null,null,null,null,null,null,null,null,"Număr proiecte",null,null,null,null,"Titlul Proiectui și numărul contractului de finanțare ",null,null,null,null,null,null,null,null,null,null,null,null,null,null,null,null,null,null,null,null,null,null,"Data finalizării\nll/zz/aaaa",null,null,null,null,null,null,"Valoarea\nsprijinului\n(EUR)"]
[null,"Program Naţional Apicol (PNA)"]
[null,"Program Naţional de Sprijin al României în Sectorul vitivinicol (PNS)"]
[null,"FEADR*"]
[null,"Alte programe europene*"]
[null,"Alte programe europene*"]
[null,"Alte programe europene*"]
[null,"Alte programe internaţionale*"]
[null,"Alte programe internaţionale*"]
[null,"Alte programe internaţionale*"]
[null,null,null,null,"\n* se completează de către solicitant cu denumirea programului"]
["MINISTERUL AGRICULTURII ŞI DEZVOLTĂRII RURALE",null,null,null,null,null,null,null,null,null,null,null,null,null,null,null,null,null,null,null,null,null,null,null,null,null,null,null,null,null,"SECTIUNE SPECIFICĂ MĂSURII M3/2B"]
["AGENŢIA PENTRU FINANŢAREA INVESTIŢIILOR RURALE"]
[]
["D. ALTE INFORMAȚII :"]
["Programarea proiectului:"]
["Numar luni de implementare"]
[]
["E. LISTA DOCUMENTELOR ANEXATE PROIECTELOR AFERENTE MĂSURII M3/2B ",null,null,null,null,null,null,null,null,null,null,null,null,null,null,null,null,null,null,null,null,null,null,null,null,null,null,null,null,null,null,null,null,null,null,null,null,null,null,null,null,null,null,null,null,null,null,null,null,null,null,null,null,null,null,"OPIS"]
[null,null,null,null,null,null,null,null,null,null,null,null,null,null,null,null,null,null,null,null,null,null,null,null,null,null,null,null,null,null,null,null,null,null,null,null,null,null,null,null,null,null,null,null,null,null,null,null,null,null,null,null,null,null,null,"documente"]
["A  se anexa documentele în ordinea de mai jos:"]
["Lista documente",null,null,null,null,null,null,null,null,null,null,null,null,null,null,null,null,null,null,null,null,null,null,null,null,null,null,null,null,null,"Obligatoriu pentru toate proiectele",null,null,null,null,"Obligatoriu, dacă proiectul impune",null,null,null,null,null,null,"PAGINA de   la - până la",null,null,null,null,null,null,null,"Obligatoriu pentru toate proiectele",null,null,null,null,"Obligatoriu, dacă proiectul impune"]
["Documente specifice etapei:",null,null,null,null,null,null,null,null,null,null,null,null,null,null,null,null,null,null,null,null,null,null,null,null,null,null,null,null,null,"DEPUNERE",null,null,null,null,null,null,null,null,null,null,null,null,null,null,null,null,null,null,null,"CONTRACTARE"]
["1. Plan de afaceri pentru dezvoltarea exploataţiei"]
["2. Documente proprietate/folosinta pentru exploataţia agricola, documente obligatoriu de prezentat la depunerea cererii de finanţare\na) Documente solicitate pentru terenul agricol:\n● document care atestă dreptul de proprietate asupra terenului agricol conform legislaţiei în vigoare (contract de vânzare - cumpărare autentificat de notar, act de donaţie autentificat de notar, hotarâre judecatorească definitivă şi irevocabilă cu punere în posesie, certificat de moştenitor unic autentificat de notar şi alte documente care demonstrează terţilor dreptul de proprietate conform legislaţiei în vigoare autentificate la notar)"]
["si/sau\n● tabel centralizator - emis de Primărie, semnat de persoanele autorizate conform legii, (conţinând sumarul contractelor de arendare la data depunerii Cererii de Finanţare), cu suprafeţele luate în arendă pe categorii de folosinţă"]
["si/sau\n● contract de concesionare, valabil la data depunerii Cererii de Finanţare, însoţit de adresa emisă de concedent care conţine situaţia privind respectarea clauzelor contractuale, dacă este în graficul de realizare a investiţiilor prevăzute în contract şi alte clauze;"]
["şi/sau\n● contractul de comodat/ contractul de închiriere/ documentul potrivit căruia suprafaţa de teren a fost temporar în administrare/ folosinţă."]
["si/sau\n● Document notarial care atestă constituirea patrimoniului de afectaţiune."]
["si/sau\n● documente pentru terenul ce constituie vatra stupinei – acte de proprietate conform legislaţiei în vigoare, sau contract de concesiune/ contract de arendă/ închiriere/ comodat valabile la momentul depunerii cererii de finanţare.\nSuprafaţa de teren eligibilă pentru vatra stupinei este de minim 5 mp/stup şi 50 mp pentru fiecare pavilion apicol."]
["● În cazul exploataţiilor care presupun înfiinţarea şi/sau reconversia plantaţiilor pomicole, contractele care conferă dreptul de folosință (arendă, concesiune) asupra terenurilor agricole, pentru exploatații pomicole, să aibă o valabilitate de minimum 15 ani (excepție: pepinierele, culturile de căpșun, zmeur, mur, coacăz și agriș unde perioada minimă este de 10 ani), începând cu anul depunerii Cererii de Finanţare."]
["b) Pentru construcţii permanente, conform prevederilor Legii nr.50/1991, cu modificările şi completările ulterioare:\n● documentul care atestă dreptul real principal asupra construcţiei: drept de proprietate, uz, uzufruct, superficie, servitute (dobândite prin: contract de vânzare-cumpărare, de schimb, de donaţie, certificat de moştenitor, act administrativ de restituire, hotărâre judecătorească);"]
["c) Pentru construcţii provizorii, conform prevederilor Legii nr.50/1991, cu modificările şi completările ulterioare:\n● documentul care atestă dreptul real principal asupra construcţiei: drept de proprietate, uz, uzufruct, superficie, servitute (dobândite prin: contract de vânzare-cumpărare, de schimb, de donaţie, certificat de moştenitor, act administrativ de restituire, hotărâre judecătorească);\n● documentul care atestă dreptul de creanţă asupra construcţiei dobândit prin: concesiune, comodat, locaţiune;\nÎn cazul prezentării contractului de comodat/locaţiune pentru construcţiile cu caracter provizoriu, conform prevederilor Legii 50/1991, cu modificările şi completările ulterioare, solicitantul trebuie să ataşeze şi acordul expres al proprietarului de drept.\n● documente care atestă: drept de proprietate, uz, uzufruct, superficie, servitute (dobândit prin: contract de vânzare-cumpărare, de schimb, de donaţie, certificat de moştenitor, act administrativ de restituire, hotărâre judecătorească) sau drept de creanţă asupra construcţiei dobândit prin: concesiune, comodat, locaţiune."]
["d) Documente solicitate pentru animale, păsări şi familii de albine:\n● extras din Registrul Exploataţiei emis de ANSVSA/ DSVSA/ Circumscripţia Veterinară (adeverinţă eliberată de medicul veterinar de circumscripţie) actualizat cu cel mult 30 zile calendaristice înaintea depunerii cererii de finanţare din care să rezulte: efectivul de animale deţinut, al păsărilor şi al familiilor de albine şi data primei înscrieri a solicitantului în Registrul Exploataţiei, însoţit de formular de mişcare ANSVSA/DSVSA (Anexa 4 din Normele sanitare veterinare ale Ordinului ANSVSA nr. 40/2010);"]
["• Copia adeverintei emise de ANZ din care sa rezulte codul de identificare a stupinei si stupilor, numarul familiilor de albine;"]
["● PAŞAPORTUL emis de ANZ pentru ecvideele (cabalinele) cu rasă şi origine."]
["e1) Pentru exploataţiile vegetale: copie din Registrul agricol emis de Primării actualizată în anul depunerii cererii de finanţare care să confirme dreptul de folosinţă (proprietate/arendă/concesionare) al terenului/ fermei zootehnice/ animalelor (doar proprietate) înregistrate pentru baza de producţie, cu ştampila primăriei şi menţiunea \"Conform cu originalul\".\ne2) Pentru exploataţiile mixte şi zootehnice: copie din Registrul agricol emis de Primării actualizată cu cel mult 30 de zile înaintea depunerii cererii de finanţare care să confirme dreptul de folosinţă (proprietate/arendă/concesionare) al terenului/ fermei zootehnice/animalelor (doar proprietate) înregistrate pentru baza de producţie, cu ştampila primăriei şi menţiunea \"Conform cu originalul\".\n\nÎn situaţia în care primăriile nu pot elibera copia Registrului agricol cu situaţia curentă, se va depune copia ultimei înregistrari a registrului agricol însoţită de adeverinţă emisă de primărie privind situaţia curentă."]
["3. Copia Contractului de colectare a gunoiului de grajd încheiat între solicitant și deținătorul platformei/Copia Adeverinței emisă de Primăria Comunei pe teritoriul căreia se regăsește platforma comunală, din care să rezulte faptul că aceasta are capacitatea de preluare a gunoiului de grajd din exploatația solicitantului."]
["4. Copiile situaţiilor financiare pentru anii \"n\" şi \"n-1\", unde \"n\" este anul anterior anului în care solicitantul depune Cererea de Finanţare, înregistrate la Administraţia Financiară;\na) Pentru societăţi comerciale:\n-Bilanţul (cod 10);\n-Contul de profit şi pierderi (cod 20);\n-Datele informative (cod 30);\n-Situaţia activelor imobilizate (cod 40);"]
["şi/sau\n-Declaraţia de inactivitate înregistrată la Administraţia Financiară (cod S1046), în cazul solicitanţilor care de la constituire, nu au desfăşurat activitate pe o perioadă mai mare de un an fiscal"]
["b) Pentru persoane fizice autorizate, întreprinderi individuale şi întreprinderi familiale\n- Declaratia unica privind impozitul pe venit și contributiile sociale datorate de persoanele fizice/Document similar ANAF, daca este cazul"]
["5. Certificat care să ateste lipsa datoriilor restante fiscale şi sociale emise de Direcţia Generală a Finanţelor Publice, iar în cazul în care solicitantul este proprietar asupra imobilelor, se va depune Certificat emis de Primăria de pe raza cărora îşi au sediul social şi punctele de lucru"]
["6. Copia actului de identitate pentru reprezentantul legal de proiect (asociat unic/asociat majoritar/administrator)"]
["7. Certificatul de înregistrare eliberat de Oficiul Registrului Comertului conform legislaţiei în vigoare"]
["8. Hotărârea Adunării Generale a Acţionarilor (AGA) persoanei juridice, prin care se desemnează ca tânărul fermier (actionar majoritar 50%+1) să reprezinte societatea în relaţia cu AFIR și că exercită un control efectiv pe termen lung (pentru cel puţin 6 ani) în ceea ce priveşte deciziile referitoare la gestionare, beneficii, riscuri financiare în cadrul exploataţiei respective."]
["9. Solicitantul deține competențe și aptitudini profesionale, îndeplinind cel puțin una dintre următoarele condiții:\n9.1. Studii medii/superioare în domeniul agricol/veterinar/economie agrară;\n-diplomă de absolvire studii superioare în domeniul agricol\nsau"]
["-diplomă de absolvire studii postliceale şi sau liceale în domeniul agricol;"]
["9.2 Certificat de calificare profesională care atestă urmarea unui curs de calificare în domeniul agricol, agro-alimentar, veterinar sau economie agrară de cel puţin Nivel 1 de calificare profesională, conform legislaţiei aplicabile la momentul acordării certificatului ;"]
["9.3.a) Competențe în domeniul agricol/veterinar/economie agrară dobândite prin participarea la programe de inițiere/ instruire/specializare care nu necesită un document eliberat de formatorii recunoscuţi de către ANC şi presupune un număr de ore sub numărul de ore aferent Nivelului I de calificare profesională (Nivelul I de calificare presupune 360 de ore de curs pentru cei care au urmat cursuri până la 1 ianuarie 2016, şi 80 de ore de curs pentru cei care au urmat cursuri după 1 ianuarie 2016). Competențele în domeniile menționate vor fi dovedite prin prezentarea certificatului/ diplomei/ atestatului de absolvire a cursului sau a unui document echivalent acestora se acceptă şi certificatele de calificare eliberate de ANCA. "]
["sau\n9.3.b) Recunoaşterea de către un centru de evaluare si certificare a competențelor profesionale obținute pe alte căi decât cele formale autorizat ANC a competenţelor dobândite ca urmare a experienţei profesionale;"]
["9.4. Angajamentul de a dobândi competențele profesionale adecvate într-o perioadă de grație de maximum 33 de luni de la data adoptării deciziei individuale de acordare a ajutorului, dar nu mai mult de ultima tranșă de plată;"]
["În cazul solicitanţilor care nu au studii medii/superioare, aceştia prezintă diploma/ document doveditor (inclusiv suplimentul descriptiv al certificatelor de formare profesională atestate ANC care cuprind această informaţie) de absolvire a minim 8 clase."]
["10. Cazierul judiciar in original (fără înscrieri privind sancțiuni economico-financiare) al reprezentantului legal, valabil la data încheierii contractului."]
["11. Document emis de ANSVSA, prin care se certifică înregistrarea exploatației comerciale de tip A, conform Ordinului ANSVSA nr. 16 din 16.03.2010"]
["12. Document de la bancă din care să rezulte următoarele: denumirea solicitantului, a unității bancare, adresa, codul IBAN."]
["13. Autorizaţia pentru producerea, prelucrarea şi comercializarea seminţelor certificate şi a materialului săditor (în cazul producătorilor de seminţe şi material săditor);"]
["14. Declaratie pe propria raspundere – formular propriu GAL"]
["15. Certificat constatator RECOM – forma extinsa (respectiv Certificat constatator Fonduri IMM) –  emis cu maxim 30 de zile inainte de data depunerii proiectului, pentru toate categoriile de solicitanti. Atentie! Certificatul constatator trebuie sa includa toate modificarile realizate de solicitant in RECOM pana la momentul depunerii proiectului la nivel de GAL. "]
["16. Extras din Registrul Unic de identificare APIA/ adeverinta APIA emis(a) cu maxim 30 de zile inainte de data depunerii proiectului la GAL din care sa rezulte tipurile de culturi si suprafetele aferente declarate de solicitant la APIA. Pentru solicitantii care nu detin suprafete de teren agricol in exploatatie, se va depune document doveditor de la APIA care certifica acest aspect.\n\nAtentie! Documentul emis de APIA trebuie sa prezinta in mod obligatoriu ultima situatie a culturilor declarate de solicitant la APIA. Prin urmare, culturile ce fac obiectul proiectului trebuie sa corespunda cu situatia inregistrata la APIA. Nu se accepta diferente."]
["17. Copie din Registrul Agricol emis de Primarii, actualizat cu cel mult 30 de zile inaintea depunerii cererii de finantare, pentru toti cedentii, in cazul Exploatatiilor Agricole preluate prin transfer, din care să reiasă situația acestora înainte și după momentul preluării exploatației/exploatațiilor agricole"]
["18. Copie carte de identitate (CI)/cod unic de identificare (CUI) cedent(i), in cazul transferului de exploatatii agricole"]
["19. Alte documente justificative (dupa caz)"]
[]
[]
[]
[]
[]
[]
[]
["STABILIREA CATEGORIEI DE FERMĂ\nSTRUCTURA CULTURILOR ŞI CALCULUL VALORII PRODUCTIEI STANDARD (SO)"]
["Coduri EUROSTAT",null,null,null,null,null,null,null,null,"Denumire culturi",null,null,null,null,null,null,null,null,null,null,null,null,null,null,null,null,null,null,null,null,"Suprafaţa       (ha)",null,null,null,null,null,null,null,"SO 2013        euro/ha",null,null,null,null,null,null,null,null,null,"SO"]
[0,null,null,null,null,null,null,null,null,1,null,null,null,null,null,null,null,null,null,null,null,null,null,null,null,null,null,null,null,null,2,null,null,null,null,null,null,null,3,null,null,null,null,null,null,null,null,null,4]
["B_1_1_1",null,null,null,null,null,null,null,null,"Grâu comun",null,null,null,null,null,null,null,null,null,null,null,null,null,null,null,null,null,null,null,null,null,null,null,null,null,null,null,null,614.09,null,null,null,null,null,null,null,null,null,{"$f":"AE346*AM346","v":0}]
["B_1_1_2",null,null,null,null,null,null,null,null,"Grâu dur",null,null,null,null,null,null,null,null,null,null,null,null,null,null,null,null,null,null,null,null,null,null,null,null,null,null,null,null,432.81,null,null,null,null,null,null,null,null,null,0]
["B_1_1_3",null,null,null,null,null,null,null,null,"Secară",null,null,null,null,null,null,null,null,null,null,null,null,null,null,null,null,null,null,null,null,null,null,null,null,null,null,null,null,354.27,null,null,null,null,null,null,null,null,null,0]
["B_1_1_4",null,null,null,null,null,null,null,null,"Orz+Orzoaica",null,null,null,null,null,null,null,null,null,null,null,null,null,null,null,null,null,null,null,null,null,null,null,null,null,null,null,null,529.44000000000005,null,null,null,null,null,null,null,null,null,0]
["B_1_1_5",null,null,null,null,null,null,null,null,"Ovăz",null,null,null,null,null,null,null,null,null,null,null,null,null,null,null,null,null,null,null,null,null,null,null,null,null,null,null,null,331.88,null,null,null,null,null,null,null,null,null,0]
["B_1_1_6",null,null,null,null,null,null,null,null,"Porumb boabe",null,null,null,null,null,null,null,null,null,null,null,null,null,null,null,null,null,null,null,null,null,null,null,null,null,null,null,null,641.79999999999995,null,null,null,null,null,null,null,null,null,0]
["B_1_1_7",null,null,null,null,null,null,null,null,"Orez",null,null,null,null,null,null,null,null,null,null,null,null,null,null,null,null,null,null,null,null,null,null,null,null,null,null,null,null,913.26,null,null,null,null,null,null,null,null,null,0]
["B_1_1_99",null,null,null,null,null,null,null,null,"Alte cereale (sorgul, triticale, meiul, hrişca, iarba-cănăraşului, altele)",null,null,null,null,null,null,null,null,null,null,null,null,null,null,null,null,null,null,null,null,null,null,null,null,null,null,null,null,452.74,null,null,null,null,null,null,null,null,null,0]
["B_1_2_1",null,null,null,null,null,null,null,null,"Mazăre boabe, fasole boabe, lupin dulce",null,null,null,null,null,null,null,null,null,null,null,null,null,null,null,null,null,null,null,null,null,null,null,null,null,null,null,null,533.77,null,null,null,null,null,null,null,null,null,0]
["B_1_2_2",null,null,null,null,null,null,null,null,"Linte, bob, măzăriche năut",null,null,null,null,null,null,null,null,null,null,null,null,null,null,null,null,null,null,null,null,null,null,null,null,null,null,null,null,454.79,null,null,null,null,null,null,null,null,null,0]
["B_1_3",null,null,null,null,null,null,null,null,"Cartofi (inclusiv cartofi noi, material săditor, cartof dulce destinat consumului uman)",null,null,null,null,null,null,null,null,null,null,null,null,null,null,null,null,null,null,null,null,null,null,null,null,null,null,null,null,3167.88,null,null,null,null,null,null,null,null,null,0]
["B_1_4",null,null,null,null,null,null,null,null,"Sfeclă de zahăr",null,null,null,null,null,null,null,null,null,null,null,null,null,null,null,null,null,null,null,null,null,null,null,null,null,null,null,null,1449.74,null,null,null,null,null,null,null,null,null,0]
["B_1_5",null,null,null,null,null,null,null,null,"Plante rădăcinoase pentru nutreţ (sfecla furajeră, alte plante furajere din familia brasicaceelor, morcovi furajeri, batata (cartof dulce), păstârnac, ignama, manioc)",null,null,null,null,null,null,null,null,null,null,null,null,null,null,null,null,null,null,null,null,null,null,null,null,null,null,null,null,1101.45,null,null,null,null,null,null,null,null,null,0]
["B_1_6_1",null,null,null,null,null,null,null,null,"Tutun",null,null,null,null,null,null,null,null,null,null,null,null,null,null,null,null,null,null,null,null,null,null,null,null,null,null,null,null,1696.83,null,null,null,null,null,null,null,null,null,0]
["B_1_6_2",null,null,null,null,null,null,null,null,"Hamei",null,null,null,null,null,null,null,null,null,null,null,null,null,null,null,null,null,null,null,null,null,null,null,null,null,null,null,null,4105.24,null,null,null,null,null,null,null,null,null,0]
["B_1_6_4",null,null,null,null,null,null,null,null,"Rapiţă",null,null,null,null,null,null,null,null,null,null,null,null,null,null,null,null,null,null,null,null,null,null,null,null,null,null,null,null,647.72,null,null,null,null,null,null,null,null,null,0]
["B_1_6_5",null,null,null,null,null,null,null,null,"Floarea soarelui",null,null,null,null,null,null,null,null,null,null,null,null,null,null,null,null,null,null,null,null,null,null,null,null,null,null,null,null,564.52,null,null,null,null,null,null,null,null,null,0]
["B_1_6_6",null,null,null,null,null,null,null,null,"Soia",null,null,null,null,null,null,null,null,null,null,null,null,null,null,null,null,null,null,null,null,null,null,null,null,null,null,null,null,611,null,null,null,null,null,null,null,null,null,0]
["B_1_6_7",null,null,null,null,null,null,null,null,"In pentru ulei",null,null,null,null,null,null,null,null,null,null,null,null,null,null,null,null,null,null,null,null,null,null,null,null,null,null,null,null,1563.56,null,null,null,null,null,null,null,null,null,0]
["B_1_6_8",null,null,null,null,null,null,null,null,"Alte plante pentru ulei (ricin, şofrănaş, susan, arahide, mac, muştar, alte culturi oleaginoase)",null,null,null,null,null,null,null,null,null,null,null,null,null,null,null,null,null,null,null,null,null,null,null,null,null,null,null,null,374,null,null,null,null,null,null,null,null,null,0]
["B_1_6_9",null,null,null,null,null,null,null,null,"In textil",null,null,null,null,null,null,null,null,null,null,null,null,null,null,null,null,null,null,null,null,null,null,null,null,null,null,null,null,307.17,null,null,null,null,null,null,null,null,null,0]
["B_1_6_10",null,null,null,null,null,null,null,null,"Cânepă",null,null,null,null,null,null,null,null,null,null,null,null,null,null,null,null,null,null,null,null,null,null,null,null,null,null,null,null,518.11,null,null,null,null,null,null,null,null,null,0]
["B_1_6_12",null,null,null,null,null,null,null,null,"Plante medicinale şi aromatice inclusiv ceaiul, cafeaua şi cicoarea pentru cafea: muşeţel, mătrăguna, menta, mac, angelica,chimen, genţiana, iasomia, lavanda, levănţica, origanul, şofranul, salvia, valeriana, gălbeneaua, etc",null,null,null,null,null,null,null,null,null,null,null,null,null,null,null,null,null,null,null,null,null,null,null,null,null,null,null,null,937.85,null,null,null,null,null,null,null,null,null,0]
["B_1_6_99",null,null,null,null,null,null,null,null,"Alte plante industriale- cicoarea, trestia de zahăr, alte plante tehnice nemenţionate în altă parte, sorgul tehnic (pentru mături)",null,null,null,null,null,null,null,null,null,null,null,null,null,null,null,null,null,null,null,null,null,null,null,null,null,null,null,null,717.56,null,null,null,null,null,null,null,null,null,0]
["B_1_7_1_1",null,null,null,null,null,null,null,null,"Legume proaspete, pepeni şi căpşuni - în câmp –\n- varza,conopida, broccoli, sparanghel\n- legume pt. frunze (praz, salata, spanac, etc.)\n- tomate\n- porumb dulce\n- legume cultivate pentru fructe - vinete, ardei, dovleci şi dovlecei, castraveciori\n- legume cultivate pentru rădăcină, bulbi, tuberculi (excepţie cartofi): morcovi, păstârnac, ceapa,usturoi,ridichii, napi\n- legume păstăi (fasole, mazăre cu excepţia lintei şi a năutului)\n- fructele plantelor neperene (căpşuni, pepeni galbeni, pepeni verzi, ananas)\n",null,null,null,null,null,null,null,null,null,null,null,null,null,null,null,null,null,null,null,null,null,null,null,null,null,null,null,null,6196.49,null,null,null,null,null,null,null,null,null,0]
["B_1_7_1_2",null,null,null,null,null,null,null,null,"Legume proaspete, pepeni şi căpşuni - în gradina destinate comercializării:\n- varza,conopida, broccoli, sparanghel\n- legume pt. frunze (praz, salata, spanac, etc.)\n- tomate\n- porumb dulce\n- legume cultivate pentru fructe - vinete, ardei, dovleci şi dovlecei, castraveciori\n- legume cultivate pentru rădăcină, bulbi, tuberculi (excepţie cartofi): morcovi, păstârnac, ceapa,usturoi,ridichii, napi\n- legume păstăi (fasole, mazăre cu excepţia lintei şi a năutului)\n- fructele plantelor neperene (căpşuni, pepeni galbeni, pepeni verzi, ananas)",null,null,null,null,null,null,null,null,null,null,null,null,null,null,null,null,null,null,null,null,null,null,null,null,null,null,null,null,7176.16,null,null,null,null,null,null,null,null,null,0]
["B_1_7_2",null,null,null,null,null,null,null,null,"Legume proaspete, pepeni şi căpşuni - în sere şi solarii:\n- varza, conopida, broccoli, sparanghel\n- legume pt. frunze (praz, salata, spanac, etc.)\n- tomate\n- porumb dulce\n- legume cultivate pentru fructe - vinete, ardei, dovleci şi dovlecei, castraveciori\n- legume cultivate pentru rădăcină, bulbi, tuberculi (excepţie cartofi): morcovi, păstârnac, ceapa, usturoi,ridichii, napi\n- legume păstăi (fasole, mazăre cu excepţia lintei şi a năutului)\n- fructele plantelor neperene (căpşuni, pepeni galbeni, pepeni verzi, ananas)",null,null,null,null,null,null,null,null,null,null,null,null,null,null,null,null,null,null,null,null,null,null,null,null,null,null,null,null,27507.66,null,null,null,null,null,null,null,null,null,0]
["B_1_8_1",null,null,null,null,null,null,null,null,"Flori - în câmp\n- bulbi de flori, cormi şi tuberculi\n- flori tăiate şi boboci\n- plante cu flori şi plante ornamentale",null,null,null,null,null,null,null,null,null,null,null,null,null,null,null,null,null,null,null,null,null,null,null,null,null,null,null,null,25527.46,null,null,null,null,null,null,null,null,null,0]
["B_1_8_2",null,null,null,null,null,null,null,null,"Flori - în sere şi solarii\n- bulbi de flori, cormi şi tuberculi\n- flori tăiate şi boboci\n- plante cu flori şi plante ornamentale",null,null,null,null,null,null,null,null,null,null,null,null,null,null,null,null,null,null,null,null,null,null,null,null,null,null,null,null,83743.81,null,null,null,null,null,null,null,null,null,0]
["B_1_9_1",null,null,null,null,null,null,null,null,"Plante de nutreţ - iarba temporară - iarba semănată pe terenuri arabile cedate producţiilor furajere erbacee pe o perioadă mai scurtă de 5 ani şi chiar sub un an",null,null,null,null,null,null,null,null,null,null,null,null,null,null,null,null,null,null,null,null,null,null,null,null,null,null,null,null,266.22000000000003,null,null,null,null,null,null,null,null,null,0]
["B_1_9_2_1",null,null,null,null,null,null,null,null,"Plante de nutreţ - alte furaje verzi - porumb siloz",null,null,null,null,null,null,null,null,null,null,null,null,null,null,null,null,null,null,null,null,null,null,null,null,null,null,null,null,1029.19,null,null,null,null,null,null,null,null,null,0]
["B_1_9_2_2",null,null,null,null,null,null,null,null,"Plante de nutreţ - alte furaje verzi (culturi anuale de cereale recoltate verzi, sorgul anual, anumite graminee anuale cum sunt firuţa, cruciferele, facelia dacă sunt recoltate  verzi şi nu au fost menţionate în altă parte mazariche, lupin dulce)",null,null,null,null,null,null,null,null,null,null,null,null,null,null,null,null,null,null,null,null,null,null,null,null,null,null,null,null,476.13,null,null,null,null,null,null,null,null,null,0]
["B_1_9_2_99",null,null,null,null,null,null,null,null,"Alte plante de nutreţ (diferite specii de trifoi anual sau peren- trifoi alb, trifoi roşu, trifoi de Alexandria - diferite varietăţi de lucernă)",null,null,null,null,null,null,null,null,null,null,null,null,null,null,null,null,null,null,null,null,null,null,null,null,null,null,null,null,662.78,null,null,null,null,null,null,null,null,null,0]
["B_1_10",null,null,null,null,null,null,null,null,"Seminţe şi seminceri\n- semințe de graminee\n- seminţe pentru horticultură\n- seminţe şi răsaduri pentru teren arabil cu excepţia cerealelor, a boabelor de leguminoase uscate, a cartofilor, a plantelor oleaginoase",null,null,null,null,null,null,null,null,null,null,null,null,null,null,null,null,null,null,null,null,null,null,null,null,null,null,null,null,2993.73,null,null,null,null,null,null,null,null,null,0]
["B_1_11",null,null,null,null,null,null,null,null,"Alte plante (culturi de mică importanţă economică care nu pot fi încadrate în altă categorie)",null,null,null,null,null,null,null,null,null,null,null,null,null,null,null,null,null,null,null,null,null,null,null,null,null,null,null,null,592.99,null,null,null,null,null,null,null,null,null,0]
["B_3_1",null,null,null,null,null,null,null,null,"Păşuni şi fâneţe permanente - păşuni şi fâneţe",null,null,null,null,null,null,null,null,null,null,null,null,null,null,null,null,null,null,null,null,null,null,null,null,null,null,null,null,295.04000000000002,null,null,null,null,null,null,null,null,null,0]
["B_3_2",null,null,null,null,null,null,null,null,"Păşuni şi fâneţe permanente - pe terenuri accidentate - păşuni sărace, inclusiv lăstărişul, de obicei nefertilizate şi neîntrebuinţate - păşuni cu randament scăzut situate în locuri accidentate şi la altitudini mari, care nu sunt cosite - terenuri  stâncoase, terenuri mlăştinoase, bărăganuri",null,null,null,null,null,null,null,null,null,null,null,null,null,null,null,null,null,null,null,null,null,null,null,null,null,null,null,null,92.33,null,null,null,null,null,null,null,null,null,0]
["B_4_1_1_1",null,null,null,null,null,null,null,null,"Fructe, pomi şi arbuşti - climă temperată:\nMere\nPere\nPiersici şi nectarine\nAlte fructe vişine, cirese, caise, prune, gutui",null,null,null,null,null,null,null,null,null,null,null,null,null,null,null,null,null,null,null,null,null,null,null,null,null,null,null,null,2812.04,null,null,null,null,null,null,null,null,null,0]
["B_4_1_2",null,null,null,null,null,null,null,null,"Livezi de coacaz, smochin, zmeur, muri, agrise, cătină, afin, goji",null,null,null,null,null,null,null,null,null,null,null,null,null,null,null,null,null,null,null,null,null,null,null,null,null,null,null,null,3958.34,null,null,null,null,null,null,null,null,null,0]
["B_4_1_3",null,null,null,null,null,null,null,null,"Fructe, pomi şi arbuşti - nuci, alune",null,null,null,null,null,null,null,null,null,null,null,null,null,null,null,null,null,null,null,null,null,null,null,null,null,null,null,null,1754.4,null,null,null,null,null,null,null,null,null,0]
["B_4_4_1",null,null,null,null,null,null,null,null,"Vii - vin nobil",null,null,null,null,null,null,null,null,null,null,null,null,null,null,null,null,null,null,null,null,null,null,null,null,null,null,null,null,1981.83,null,null,null,null,null,null,null,null,null,0]
["B_4_4_2",null,null,null,null,null,null,null,null,"Vii - alte vinuri",null,null,null,null,null,null,null,null,null,null,null,null,null,null,null,null,null,null,null,null,null,null,null,null,null,null,null,null,1889.96,null,null,null,null,null,null,null,null,null,0]
["B_4_4_3",null,null,null,null,null,null,null,null,"Vii – struguri de masa",null,null,null,null,null,null,null,null,null,null,null,null,null,null,null,null,null,null,null,null,null,null,null,null,null,null,null,null,2170.52,null,null,null,null,null,null,null,null,null,0]
["B_4_5",null,null,null,null,null,null,null,null,"Pepiniere",null,null,null,null,null,null,null,null,null,null,null,null,null,null,null,null,null,null,null,null,null,null,null,null,null,null,null,null,5614.25,null,null,null,null,null,null,null,null,null,0]
["B_4_6",null,null,null,null,null,null,null,null,"Alte culturi permanente: răchita, papura, bambus, salcie, brazi de craciun",null,null,null,null,null,null,null,null,null,null,null,null,null,null,null,null,null,null,null,null,null,null,null,null,null,null,null,null,487.35,null,null,null,null,null,null,null,null,null,0]
["B_6_1",null,null,null,null,null,null,null,null,"Ciupercării pe 100mp (Nr. recolte pe an - 4)",null,null,null,null,null,null,null,null,null,null,null,null,null,null,null,null,null,null,null,null,null,null,null,null,null,null,null,null,4456.78,null,null,null,null,null,null,null,null,null,0]
[null,null,null,null,null,null,null,null,null,"TOTAL VEGETAL",null,null,null,null,null,null,null,null,null,null,null,null,null,null,null,null,null,null,null,null,null,null,null,null,null,null,null,null,null,null,null,null,null,null,null,null,null,null,{"$f":"SUM(AW346:BI391)","v":0}]
[]
["*  SE VA COMPLETA CU NUMĂRUL DE CICLURI PREVĂZUT A SE REALIZA ÎN CADRUL UNUI AN, CONFORM PLANULUI DE\nAFACERI.\n** SE VA COMPLETA CU SUPRAFAŢA CULTURII(MP) CU CIUPERCI; ÎN CAZUL ÎN CARE ÎN CADRUL CIUPERCĂRIEI SE\nUTILIZEAZĂ UN SISTEM DE CULTURĂ ÎN STELAJE, SE VA COMPLETA SUPRAFAŢA CULTURII(MP) FORMATĂ DIN SUPRAFAŢA\nUNUI STELAJ(MP)xNUMĂR DE STELAJE "]
["Coduri EUROSTAT",null,null,null,null,null,null,null,null,"Denumire specii animale",null,null,null,null,null,null,null,null,null,null,null,null,null,null,null,null,null,null,null,null,"Număr\ncapete",null,null,null,null,null,null,null,"SO 2013          euro/cap",null,null,null,null,null,null,null,null,null,"SO"]
[0,null,null,null,null,null,null,null,null,1,null,null,null,null,null,null,null,null,null,null,null,null,null,null,null,null,null,null,null,null,2,null,null,null,null,null,null,null,3,null,null,null,null,null,null,null,null,null,4]
["C_1",null,null,null,null,null,null,null,null,"Ecvidee",null,null,null,null,null,null,null,null,null,null,null,null,null,null,null,null,null,null,null,null,null,null,null,null,null,null,null,null,1404.31,null,null,null,null,null,null,null,null,null,{"$f":"AE397*AM397","v":0}]
["C_2_1",null,null,null,null,null,null,null,null,"Bovine sub 1 an - total",null,null,null,null,null,null,null,null,null,null,null,null,null,null,null,null,null,null,null,null,null,null,null,null,null,null,null,null,216.38,null,null,null,null,null,null,null,null,null,0]
["C_2_2",null,null,null,null,null,null,null,null,"Bovine sub 2 ani - masculi",null,null,null,null,null,null,null,null,null,null,null,null,null,null,null,null,null,null,null,null,null,null,null,null,null,null,null,null,344.4,null,null,null,null,null,null,null,null,null,0]
["C_2_3",null,null,null,null,null,null,null,null,"Bovine sub 2 ani - femele",null,null,null,null,null,null,null,null,null,null,null,null,null,null,null,null,null,null,null,null,null,null,null,null,null,null,null,null,341.49,null,null,null,null,null,null,null,null,null,0]
["C_2_4",null,null,null,null,null,null,null,null,"Bovine de 2 ani şi peste - masculi",null,null,null,null,null,null,null,null,null,null,null,null,null,null,null,null,null,null,null,null,null,null,null,null,null,null,null,null,817.88,null,null,null,null,null,null,null,null,null,0]
["C_2_5",null,null,null,null,null,null,null,null,"Bovine de 2 ani si peste - femele (juninci pentru îngrăşat, juninci pentru reproducţie)",null,null,null,null,null,null,null,null,null,null,null,null,null,null,null,null,null,null,null,null,null,null,null,null,null,null,null,null,801.38,null,null,null,null,null,null,null,null,null,0]
["C_2_6",null,null,null,null,null,null,null,null,"Vaci, bivolite pentru lapte",null,null,null,null,null,null,null,null,null,null,null,null,null,null,null,null,null,null,null,null,null,null,null,null,null,null,null,null,1200.46,null,null,null,null,null,null,null,null,null,0]
["C_2_99",null,null,null,null,null,null,null,null,"Bovine de 2 ani şi peste - alte vaci",null,null,null,null,null,null,null,null,null,null,null,null,null,null,null,null,null,null,null,null,null,null,null,null,null,null,null,null,515.85,null,null,null,null,null,null,null,null,null,0]
["C_3_1_1",null,null,null,null,null,null,null,null,"Oi - mioare montate - oi de un an sau mai mult destinate reproducerii, oile reformate care urmează să fete",null,null,null,null,null,null,null,null,null,null,null,null,null,null,null,null,null,null,null,null,null,null,null,null,null,null,null,null,54.91,null,null,null,null,null,null,null,null,null,{"$f":"AE405*AM405","v":0}]
["C_3_1_99",null,null,null,null,null,null,null,null,"Oi - alte oi : miei, berbeci, oi reformate - oi sterpe care urmează a fi îngrăşate în vederea sacrificării",null,null,null,null,null,null,null,null,null,null,null,null,null,null,null,null,null,null,null,null,null,null,null,null,null,null,null,null,26.72,null,null,null,null,null,null,null,null,null,0]
["C_3_2_1",null,null,null,null,null,null,null,null,"Capre – capre montate - capre montate femele destinate reproducerii, capre re reformate care urmează să fete",null,null,null,null,null,null,null,null,null,null,null,null,null,null,null,null,null,null,null,null,null,null,null,null,null,null,null,null,112.98,null,null,null,null,null,null,null,null,null,0]
["C_3_2_99",null,null,null,null,null,null,null,null,"Capre – alte capre: iezi, ţapi, capre reformate destinate sacrificării",null,null,null,null,null,null,null,null,null,null,null,null,null,null,null,null,null,null,null,null,null,null,null,null,null,null,null,null,39.67,null,null,null,null,null,null,null,null,null,0]
["C_4_1_1",null,null,null,null,null,null,null,null,"Porcine - tineret porcin sub 20 kg",null,null,null,null,null,null,null,null,null,null,null,null,null,null,null,null,null,null,null,null,null,null,null,null,null,null,null,null,33.36,null,null,null,null,null,null,null,null,null,0]
["C_4_1_2",null,null,null,null,null,null,null,null,"Porcine - scroafe pentru reproducţie peste 50 kg",null,null,null,null,null,null,null,null,null,null,null,null,null,null,null,null,null,null,null,null,null,null,null,null,null,null,null,null,262.55,null,null,null,null,null,null,null,null,null,0]
["C_4_1_99",null,null,null,null,null,null,null,null,"Porcine - alte porcine: porci la îngrăşat, vieri, scroafe destinate sacrificării",null,null,null,null,null,null,null,null,null,null,null,null,null,null,null,null,null,null,null,null,null,null,null,null,null,null,null,null,388.08,null,null,null,null,null,null,null,null,null,0]
["C_5_1",null,null,null,null,null,null,null,null,"Pui pentru carne *",null,null,null,null,null,null,null,null,null,null,null,null,null,null,null,null,null,null,null,null,null,null,null,null,null,null,null,null,473.59,null,null,null,null,null,null,null,null,null,0]
["C_5_2",null,null,null,null,null,null,null,null,"Găini ouătoare *",null,null,null,null,null,null,null,null,null,null,null,null,null,null,null,null,null,null,null,null,null,null,null,null,null,null,null,null,2156,null,null,null,null,null,null,null,null,null,0]
["C_5_3_1",null,null,null,null,null,null,null,null,"Curcani şi curci*",null,null,null,null,null,null,null,null,null,null,null,null,null,null,null,null,null,null,null,null,null,null,null,null,null,null,null,null,4205.5600000000004,null,null,null,null,null,null,null,null,null,0]
["C_5_3_2",null,null,null,null,null,null,null,null,"Raţe*",null,null,null,null,null,null,null,null,null,null,null,null,null,null,null,null,null,null,null,null,null,null,null,null,null,null,null,null,2824.99,null,null,null,null,null,null,null,null,null,0]
["C_5_3_3",null,null,null,null,null,null,null,null,"Gâşte*",null,null,null,null,null,null,null,null,null,null,null,null,null,null,null,null,null,null,null,null,null,null,null,null,null,null,null,null,3602.66,null,null,null,null,null,null,null,null,null,0]
["C_5_3_4",null,null,null,null,null,null,null,null,"Struţi*",null,null,null,null,null,null,null,null,null,null,null,null,null,null,null,null,null,null,null,null,null,null,null,null,null,null,null,null,30083.5,null,null,null,null,null,null,null,null,null,0]
["C_5_3_99",null,null,null,null,null,null,null,null,"Alte păsări*: bibilici, porumbei, potârnichi, fazani, prepeliţe",null,null,null,null,null,null,null,null,null,null,null,null,null,null,null,null,null,null,null,null,null,null,null,null,null,null,null,null,900.34,null,null,null,null,null,null,null,null,null,0]
["C_6",null,null,null,null,null,null,null,null,"Iepuri (femele iepuri)",null,null,null,null,null,null,null,null,null,null,null,null,null,null,null,null,null,null,null,null,null,null,null,null,null,null,null,null,13.91,null,null,null,null,null,null,null,null,null,0]
["C_7",null,null,null,null,null,null,null,null,"Familii de albine",null,null,null,null,null,null,null,null,null,null,null,null,null,null,null,null,null,null,null,null,null,null,null,null,null,null,null,null,59.62,null,null,null,null,null,null,null,null,null,0]
[null,null,null,null,null,null,null,null,null,"TOTAL zootehnic",null,null,null,null,null,null,null,null,null,null,null,null,null,null,null,null,null,null,null,null,null,null,null,null,null,null,null,null,null,null,null,null,null,null,null,null,null,null,{"$f":"SUM(AW397:BI420)","v":0}]
[null,null,null,null,null,null,null,null,null,"TOTAL GENERAL",null,null,null,null,null,null,null,null,null,null,null,null,null,null,null,null,null,null,null,null,null,null,null,null,null,null,null,null,null,null,null,null,null,null,null,null,null,null,{"$f":"SUM(AW392+AW421)","v":0}]
[]
["Valoare sprijin:*",null,null,null,null,null,null,null,null,null,null,null,null,null,null,null,null,null,null,null,null,null,null,null,null,null,null,null,null,null,null,null,null,null,null,"* Valoarea SO se referă la 100 capete"]
[]
["Curs EURO la data întocmirii Planului de Afaceri:",null,null,null,null,null,null,null,null,null,null,null,null,null,null,null,null,null,null,null,null,null,null,null,null,null,null,null,null,null,null,null,null,"Data întocmire Plan de Afaceri:"]
[]
[]
[null,"DEFINIŢIA ŞI PRINCIPIILE DE CALCULARE A PRODUCŢIILOR STANDARD\nProducţia corespunzătoare unei exploatații agricole reprezintă valoarea monetară a producţiei agricole brute la preţul de la poarta exploataţiei.\nProducţia standard reprezintă valoarea producţiei corespunzătoare situaţiei medii într-o regiune dată, pentru fiecare exploatație agricolă.\nProducţia este suma dintre valoarea produsului principal (produselor principale) şi cea a produsului secundar (produselor secundare).\n· De exemplu, producția principală a unei vaci de lapte este laptele; valorile vițeilor și ale cărnii de vacă sunt considerate producție secundară și sunt incluse în producția standard\n· De exemplu, producția principală la o cultură de grâu este grâul iar paiele considerate producție secundară, trebuie să fie evaluate în cazul în care sunt colectate pentru utilizarea la fermă sau pentru vânzare și sunt incluse în producția standard\nValoarea producției standard se calculează înmulţind producţia per unitate (ha, cap) cu preţul la poarta exploataţiei. TVA-ul, taxele pe produse şi plăţile directe nu sunt incluse.\nPerioada de producţie\nProducţiile standard corespund unei perioade de producţie de 12 luni (an calendaristic).\nPentru produsele vegetale şi animale pentru care perioada de producţie este mai mică de 12 luni sau depăşeşte această perioadă, se calculează o producţie standard corespunzătoare creşterii sau producţiei pe o perioadă de 12 luni.\nDate de bază şi perioada de referinţă\nProducţiile standard se determină pe baza informațiilor contabile agricole, informații care se colectează în statele membre UE pentru o perioadă de referinţă care cuprinde cinci ani succesivi. Perioada de referinţă este aceeaşi pentru toate statele membre şi este stabilită de CE. De exemplu, producţiile standard SO corespunzătoare perioadei de referinţă \"2013\" cuprind anii calendaristici 2011, 2012, 2013, 2014 și 2015, denumită statistic SO2013."]
["F. DECLARAŢIE PE PROPRIA RĂSPUNDERE A SOLICITANTULUI"]
["Prin această declaraţie solicitantul"]
[]
["care solicită asistență financiară nerambursabilă prin programul FEADR pentru proiectul intitulat"]
[]
[]
["1.",null,null,"Declar pe propria răspundere că îndeplinesc condiţiile minime de acordare a sprijinului prevazute în fişa măsurii\ndin Ghidul Solicitantului şi mă angajez să le respect pe o perioadă egală cu perioada de implementare şi\nmonitorizare a proiectelor începând cu anul depunerii cererii de finanţare."]
["2.",null,null,"Declar pe propria răspundere că toate informaţiile din prezenta cerere de finanţare şi din documentele anexate\nsunt corecte şi mă angajez să respect condiţiile cerute în reglementările referitoare la prezentul program şi pe\ncele legate de proiectul anexat şi să furnizez periodic, la cerere, documente justificative necesare."]
["3.",null,null,"Declar pe propria răspundere că orice modificări aduse dreptului de proprietate sau de folosinţă vor fi notificate\nAFIR în termen de trei zile de la data încheierii lor. De asemenea, mă angajez, că pe perioada de implementare a\nproiectului nu voi reduce dimensiunea economică prevăzută la depunerea cererii de finanţare a exploataţiei\nagricole pe durata de execuţie a proiectului cu mai mult de 15%, cu excepţia pepinierelor, unde marja de\nfluctuaţie de maximum 15% a dimensiunii economice poate fi mai mare, fără a reduce dimensiunea SO sub limita\ncare defineşte mărimea exploataţiei pentru care proiectul este selectat şi aprobat."]
["  4.   Declar că nu sunt într-unul din urmatoarele cazuri:"]
[null,null,null,"Acuzat din cauza unei greseli privind conduita profesională având ca soluţie finală res judicata (împotriva căreia nici un apel nu este posibil)"]
[null,null,null,"Vinovat de grave deficienţe de conduită profesională dovedite prin orice mijloace pe care Agenţia le poate justifica."]
[null,null,null,"Vinovat de faptul că nu am prezentat informaţiile cerute de Autoritatea Contractantă ca o condiţie de participare la\ncontractare."]
[null,null,null,"Încălcarea prevederilor contractuale prin care nu mi-am îndeplinit obligaţiile contractuale în legătură cu un alt contract cu AFIR sau alte contracte finanţate din fonduri comunitare."]
[null,null,null,"Încercarea de a obţine informaţii confidenţiale sau de influenţare a AFIR în timpul procesului de evaluare a proiectului şi nu voi face presiuni la adresa evaluatorului."]
["5.",null,null,"Declar pe propria răspundere că mă angajez ca toate obiectivele prevăzute în Planul de afaceri să fie realizate cu\nrespectarea legislaţiei naţionale în vigoare şi după caz, să obţin Autorizaţia de funcţionare în acord cu aceasta,\npână la verificarea conformităţii Planului de Afaceri la tranşa a doua."]
["6.",null,null,"Declar pe propria răspundere că în cazul în care nu respect oricare din punctele prevăzute în declarative\nproiectul să devină neeligibil în baza criteriului \"Eligibilitatea solicitantului\" sau contractul să fie reziliat."]
["7.",null,null,"Declar pe propria răspundere că mă instalez pentru prima dată în calitate de conducător (şef) al exploataţiei\nagricole şi că nu deţin în proprietate/folosinţă alte terenuri, animale, păsări şi familii de albine în afara celor\ndeclarate în planul de afaceri."]
["8.",null,null,"Declar că, în cazul în care, exploataţia zootehnică pe care o deţin va fi selectată şi primeşte sprijin financiar\nnerambursabil, să o înregistrez la ANSVSA, ca exploataţie comercială de tip A, până la semnarea contractului de\nFinanţare."]
["9.",null,null,"Declar pe propria răspundere că îmi voi stabili domiciliul în UAT-ul în care este înregistrată exploataţia, în\nmaximum de 9 luni de la data semnării contractului de finanţare, daca la nivelul AFIR se va impune aceasta conditie."]
["10.",null,null,"Declar pe propria răspundere că sediul social al solicitantului (persoană juridică) va fi localizat într-un UAT în\ncare este înregistrată exploataţia, daca la nivelul AFIR se va impune aceasta conditie."]
["11.",null,null,"Declar pe propria răspundere că în cazul în care mă voi angaja ulterior depunerii Cererii de finanţare voi respecta\ncondiţia privind deţinerea unui loc de muncă în acelaşi UAT sau zona limitrofă a UAT în care este înregistrată\nexploataţia în maximum de 9 luni de la data semnării contractului de finanţare, daca la nivelul AFIR se va impune aceasta conditie."]
["12.",null,null,null,null,"Declar pe propria răspundere că voi dobândi competențe profesionale adecvate într-o perioadă de grație de\nmaximum 33 de luni de la data adoptării deciziei individuale de acordare a ajutorului, dar nu mai mult de ultima\ntranşă de plată."]
["13.",null,null,"Declar pe propria răspundere că în termen de 18 luni de la data instalării voi deveni fermier activ."]
["14.",null,null,null,"Declar pe proprie raspundere ca voi achita integral datoria fata de AFIR, inclusiv dobanzile si majorarile de\nintarziere pana la semnarea contractului de finantare (pentru solicitantii inregistrati in registrul debitorilor AFIR atat pentru programul SAPARD cat si pentru FEADR)."]
["15.",null,null,"Declar pe propria răspundere că în situaţia în care desfăşor altă activitate decât cea agricolă, în cadrul unei\nforme de organizare înregistrate la ONRC, de mai mult de 24 luni înaintea depunerii Cererii de finanțare la AFIR,\nmă angajez să respect condiţia privind microîntreprinderile/întreprinderile mici – ţinând cont de întreprinderi\npartenere/legate, număr de salariaţi, cifră de afaceri."]
["16.",null,null,"Declar pe propria răspundere că în vederea depunerii Dosarului Cererii de Plată - tranșa a doua, voi înștiința\nAFIR pentru efectuarea vizitei pe teren, potrivit prevederilor din cadrul Ghidului Solicitantului."]
["17.",null,null,"Declar pe propria răspundere că nu am înscrisuri care privesc sancțiuni economico-financiare în cazierul judiciar\npe care mă oblig să îl depun la încheierea contractului de finanţare. Prin prezenta, îmi exprim consimțământul ca\nAFIR să solicite instituțiilor abilitate conform legii, extrasul de pe cazierul judiciar privind situația mea.\n(Până la reglementarea posibilităţii aplicării de către experţii evaluatori AFIR a normelor metodologice aferente\nLegii nr. 290/2004 privind cazierul judiciar, cu modificările şi completările ulterioare, solicitantul are obligaţia\ndepunerii documentului justificativ mai sus enunţat.)"]
["18.",null,null,"Sunt de acord ca AFIR să consulte şi să prelucreze, prin operaţiunile prevăzute de legislaţia în vigoare în vederea\ndesfăşurării activităţii specifice, datele mele cu caracter personal, furnizate AFIR."]
[]
["Semnătura reprezentant legal şi ştampila",null,null,null,null,null,null,null,null,null,null,null,null,null,null,null,null,null,null,null,null,null,null,null,null,null,null,null,null,null,null,null,null,null,null,null,null,null,null,null,null," Data:"]
[]
[]
[]
["Factori de risc"]
["I1. Dimensiunea economică a exploataţiei agricole",null,null,null,null,null,null,null,null,null,null,null,null,null,null,null,null,null,null,null,null,null,null,null,null,null,null,null,null,null,null,null,null,null,null,null,null,null,null,null,null,"Factor\nîndeplinit",null,null,null,null,null,null,null,null,null,"Punctaj"]
["•",null,"12 000 SO - 25 000 SO",null,null,null,null,null,null,null,null,null,null,null,null,null,null,null,null,null,null,null,null,null,null,null,null,null,null,null,null,null,null,null,null,null,null,null,null,null,null,null,null,null,null,null,null,null,null,null,null,5]
["•",null,"25 001 SO - 29 999 SO",null,null,null,null,null,null,null,null,null,null,null,null,null,null,null,null,null,null,null,null,null,null,null,null,null,null,null,null,null,null,null,null,null,null,null,null,null,null,null,null,null,null,null,null,null,null,null,null,3]
["•",null,"30 000 SO - 50 000 SO",null,null,null,null,null,null,null,null,null,null,null,null,null,null,null,null,null,null,null,null,null,null,null,null,null,null,null,null,null,null,null,null,null,null,null,null,null,null,null,null,null,null,null,null,null,null,null,null,1]
[]
["I2. Pregătire profesionala a solicitantului",null,null,null,null,null,null,null,null,null,null,null,null,null,null,null,null,null,null,null,null,null,null,null,null,null,null,null,null,null,null,null,null,null,null,null,null,null,null,null,null,"Factor\nîndeplinit",null,null,null,null,null,null,null,null,null,"Punctaj"]
["•",null,"Cu pregătire profesională minimă",null,null,null,null,null,null,null,null,null,null,null,null,null,null,null,null,null,null,null,null,null,null,null,null,null,null,null,null,null,null,null,null,null,null,null,null,null,null,null,null,null,null,null,null,null,null,null,null,5]
["•",null,"Cu studii medii în domeniu",null,null,null,null,null,null,null,null,null,null,null,null,null,null,null,null,null,null,null,null,null,null,null,null,null,null,null,null,null,null,null,null,null,null,null,null,null,null,null,null,null,null,null,null,null,null,null,null,3]
["•",null,"Cu studii superioare în domeniu",null,null,null,null,null,null,null,null,null,null,null,null,null,null,null,null,null,null,null,null,null,null,null,null,null,null,null,null,null,null,null,null,null,null,null,null,null,null,null,null,null,null,null,null,null,null,null,null,1]
[]
["I3. Gradul de dotare al exploatației conform planului de afaceri",null,null,null,null,null,null,null,null,null,null,null,null,null,null,null,null,null,null,null,null,null,null,null,null,null,null,null,null,null,null,null,null,null,null,null,null,null,null,null,null,"Factor\nîndeplinit",null,null,null,null,null,null,null,null,null,"Punctaj"]
["•",null,"Nu deține baze de producție",null,null,null,null,null,null,null,null,null,null,null,null,null,null,null,null,null,null,null,null,null,null,null,null,null,null,null,null,null,null,null,null,null,null,null,null,null,null,null,null,null,null,null,null,null,null,null,null,5]
["•",null,"Propune achiziții pentru realizarea bazei de producție",null,null,null,null,null,null,null,null,null,null,null,null,null,null,null,null,null,null,null,null,null,null,null,null,null,null,null,null,null,null,null,null,null,null,null,null,null,null,null,null,null,null,null,null,null,null,null,null,3]
["•",null,"Deține baze de producție specifice activității",null,null,null,null,null,null,null,null,null,null,null,null,null,null,null,null,null,null,null,null,null,null,null,null,null,null,null,null,null,null,null,null,null,null,null,null,null,null,null,null,null,null,null,null,null,null,null,null,1]
["TOTAL RISC"]
[]
[]
[]
[]
[]
["Anexa INDICATORI DE MONITORIZARE"]
["M3/2B Instalare tanar fermier"]
["\n- Numar de exploatatii agricole/beneficiari sprijiniti\n\n- Locuri de munca create:\n\n- Cheltuiala publica totala:"]
[null,null,null,null,null,null,null,null,null,null,null,null,null,null,null,null,null,null,null,null,null,null,null,null,null,null,null,null,null,null,null,null,null,null,null,null,1,null,null,null,null,null,null,null,null,"exploatatie/beneficiar"]
[]
[null,null,null,null,null,null,null,null,null,null,null,null,null,null,null,null,null,null,null,null,null,null,null,null,null,null,null,null,null,null,null,null,null,null,null,null,null,null,null,null,null,null,null,null,null,"locuri de munca"]
[]
[null,null,null,null,null,null,null,null,null,null,null,null,null,null,null,null,null,null,null,null,null,null,null,null,null,null,null,null,null,null,null,null,null,null,null,null,null,null,null,null,null,null,null,null,null,"euro"]
[]
["Atentie! Locurile de munca create sunt locurile de munca care includ contracte cu norma intreaga, incheiate pe o perioada de \nminim 1 an."]

{"sheet":"Asociati","index":1,"n_rows":25,"n_cols":52,"rows_kept":25,"cut":false,"hidden":false,"merged":[[10,51,10,58],[0,0,0,60],[1,0,1,60],[5,3,5,10],[5,24,5,49],[6,3,6,16],[6,24,6,49],[10,4,10,15],[10,18,10,20],[10,21,10,26],[10,28,10,35],[10,37,10,48],[3,19,3,49],[11,51,12,58],[12,4,12,6],[12,7,12,9],[12,10,12,15],[11,4,11,6],[11,7,11,9],[11,10,11,15],[11,18,12,20],[11,21,12,26],[11,28,12,35],[25,4,25,6],[25,7,25,9],[25,10,25,15],[18,24,18,49],[11,37,12,48],[16,19,16,49],[18,3,18,10],[23,51,23,58],[24,28,25,35],[24,37,25,48],[24,51,25,58],[19,3,19,16],[19,24,19,49],[23,4,23,15],[23,18,23,20],[23,21,23,26],[23,28,23,35],[23,37,23,48],[24,4,24,6],[24,7,24,9],[24,10,24,15],[24,18,25,20],[24,21,25,26]]}
["B INFORMAŢII PRIVIND SOLICITANTUL"]
[]
[null,"Asociați"]
[null,null,null,"Nume şi prenume asociat:"]
[]
[null,null,null,"Data naşterii",null,null,null,null,null,null,null,null,null,null,null,null,null,null,null,null,null,null,null,null,"Cod numeric personal"]
[]
[]
[]
[]
[null,null,null,null,"Act de identitate",null,null,null,null,null,null,null,null,null,null,null,null,null,"Seria",null,null,"Nr.",null,null,null,null,null,null,"Eliberat la data de",null,null,null,null,null,null,null,null,"de:",null,null,null,null,null,null,null,null,null,null,null,null,null,"Valabil până la:"]
[null,null,null,null,"B.I.",null,null,"C.I.",null,null,"Paşaport"]
[]
[]
[]
[]
[null,null,null,"Nume şi prenume asociat:"]
[]
[null,null,null,"Data naşterii",null,null,null,null,null,null,null,null,null,null,null,null,null,null,null,null,null,null,null,null,"Cod numeric personal"]
[]
[]
[]
[]
[null,null,null,null,"Act de identitate",null,null,null,null,null,null,null,null,null,null,null,null,null,"Seria",null,null,"Nr.",null,null,null,null,null,null,"Eliberat la data de",null,null,null,null,null,null,null,null,"de:",null,null,null,null,null,null,null,null,null,null,null,null,null,"Valabil până la:"]
[null,null,null,null,"B.I.",null,null,"C.I.",null,null,"Paşaport"]